Workbook

Sheet CONSECUTIVO
B1: Nº | C1: RECIBIDO DE: | D1: POR CONCEPTO DE: 1/5 | G1: PAGADO
B2: 1 | C2: FSS INTER | D2: $ 1,184,500 | E2: 2024-01-26 | G2: 2024-01-26
B3: 2 | C3: TH FIBERGLASS | D3: $ 430,589 | E3: 2024-01-31 | G3: 2023-02-01
B4: 3 | C4: DEKONSTRUCTODO | D4: $ 130,000 | E4: 2024-02-01 | G4: 2024-02-26
B5: 4 | C5: MACROLASER | D5: $ 175,000 | E5: 2024-02-02 | G5: 2024-02-07
B6: 5 | C6: FSS INTER | D6: $ 592,250 | E6: 2024-02-06 | G6: 2024-02-16
B7: 6 | C7: DEKONSTRUCTODO | D7: $ 185,000 | E7: 2024-02-07 | G7: 2024-02-26
B8: 7 | C8: FSS INTER | D8: $ 592,250 | E8: 2024-02-27 | G8: 2024-02-29
B9: 8 | C9: DEKONSTRUCTODO | D9: $ 236,757 | E9: 2024-03-01 | G9: 2024-03-27
B10: 9 | C10: DEKONSTRUCTODO | D10: $ 357,767 | E10: 2024-03-06 | G10: 2024-03-27
B11: 10 | C11: MACROLASER | D11: $ 150,000 | E11: 2024-04-03 | G11: 2024-04-05 | I11: ABONO $1.800.000 25/07/2023 PENDIENTE $865.000 LIBRES, PAGO SALDO $865 28/09/2023
B12: 11 | C12: DEKONSTRUCTODO | D12: $ 80,000 | E12: 2024-04-04 | G12: 2024-04-09
B13: 12 | C13: MACROLASER | D13: $ 100,000 | E13: 2024-04-05 | G13: 2024-04-05
B14: 13 | C14: FSS INTER | D14: $ 430,589 | E14: 2024-04-25 | G14: 2024-05-10
B15: 14 | C15: PANATECH | D15: $ 510,000 | E15: 2024-04-26 | G15: 2024-05-02 | I15: ACUSTEC | J15: $ 11,824,000
B16: 15 | C16: PANATECH | D16: $ 91,000 | E16: 2024-05-03 | J16: ($ 2,230,000)
B17: 16 | C17: DEKONSTRUCTODO | D17: $ 135,000 | E17: 2024-06-05 | G17: 2024-06-13 | J17: ($ 2,280,000)
B18: 17 | C18: DEKONSTRUCTODO | D18: $ 160,000 | E18: 2024-07-19 | G18: 2024-07-23 | J18: ($ 2,500,000)
B19: 18 | C19: DEKONSTRUCTODO | D19: $ 347,244 | E19: 2024-08-06 | G19: 2024-08-21 | J19: ($ 2,040,000)
B20: 19 | C20: DEKONSTRUCTODO | D20: $ 150,000 | E20: 2024-08-28 | G20: 2024-09-03 | J20: ($ 2,350,000)
B21: 20 | C21: DEKONSTRUCTODO | D21: $ 95,000 | E21: 2024-10-30 | G21: 2024-11-08 | J21: ($ 424,000)
B22: 21 | C22: DPI DIGITAL | D22: $ 430,589 | E22: 2024-11-01 | G22: 2024-11-05
B23: 22 | C23: DEKONSTRUCTODO | D23: $ 126,000 | E23: 2024-11-15 | G23: 2024-11-19 | P23: 60 | Q23: 100
B24: 23 | I24: 6% | J24: RETEFUENTE | K24: 6% | P24: 54 | Q24: =(P24*Q23)/P23 -> 90
B25: 24 | I25: 11,04 X 1.000 | J25: RETEICA | K25: 1.104%
B26: 25 | K26: =K24+K25 -> 7.104% | L26: TOTAL RETENCIONES | O26: 18:30:00 | P26: 18.5
B27: 26 | K27: =100%-K26 -> 92.896% | L27: NETO RECIBIDO EN % | O27: 20:54:00 | P27: 20.9
B28: 27 | I28: VALOR NETO | J28: $ 400,000 | K28: =(J28*K26)/K27+J28 -> $ 430,589 | L28: VALOR CUENTA DE COBRO | O28: 18:41:00
B29: 28 | P29: =SUM(P26:P28) -> 39.4 | Q29: =P29*4200 -> 165480
B30: 29 | J30: COMPROBACION | K30: $ 430,589 | L30: VALOR CUENTA DE COBRO
B31: 30 | K31: =K30*6% -> $ 25,835 | L31: RETEFUENTE | Q31: =P28+P27 -> 20.9 | R31: =Q31*4200 -> 87780
B32: 31 | K32: =(K30/1000)*11.04 -> $ 4,754 | L32: RETEICA | R32: =P26*4200 -> 77700
B33: 32 | K33: =K30-K31-K32 -> $ 400,000 | L33: VALOR NETO
B34: 33
B35: 34 | I35: DEKONSTRUCTODO
B36: 35 | I36: 6% | J36: RETEFUENTE | K36: 4%
B37: 36 | I37: 9,66 X 1.000 | J37: RETEICA | K37: 0.966%
B38: 37 | K38: =K36+K37 -> 4.966% | L38: TOTAL RETENCIONES
B39: 38 | K39: =100%-K38 -> 95.034% | L39: NETO RECIBIDO EN %
B40: 39 | C40: DEKONSTRUCTODO | D40: $ 200,000 | E40: 2022-12-16 | I40: VALOR NETO | J40: $ 400,000 | K40: =(J40*K38)/K39+J40 -> $ 420,902 | L40: VALOR CUENTA DE COBRO
B41: 40
B42: 41 | J42: COMPROBACION | K42: $ 347,244 | L42: VALOR CUENTA DE COBRO
B43: 42 | K43: =K42*4% -> $ 13,890 | L43: RETEFUENTE
B44: 43 | K44: =(K42/1000)*9.66 -> $ 3,354 | L44: RETEICA
B45: 44 | K45: =K42-K43-K44 -> $ 330,000 | L45: VALOR NETO
B46: 45
B47: 46
B48: 47
B49: 48
B50: 49
B51: 50
B52: 51
B53: 52
B54: 53
B55: 54
B56: 55
B57: 56
B58: 57
B59: 58
B60: 59
B61: 60
B62: 61
B63: 62
B64: 63
B65: 64
B66: 65
B67: 66
B68: 67
B69: 68
B70: 69
B71: 70
B72: 71
B73: 72
B74: 73
B75: 74
B76: 75
B77: 76
B78: 77
B79: 78
B80: 79
B81: 80
B82: 81
B83: 82
B84: 83
B85: 84
B86: 85
B87: 86
B88: 87
B89: 88
B90: 89
B91: 90
B92: 91
B93: 92
B94: 93
B95: 94
B96: 95
B97: 96
B98: 97
B99: 98
B100: 99
B101: 100
B102: 101
B103: 102
B104: 103
B105: 104
B106: 105
B107: 106
B108: 107
B109: 108
B110: 109
B111: 110
B112: 111
B113: 112
B114: 113
B115: 114
B116: 115
B117: 116
B118: 117
B119: 118
B120: 119
B121: 120
B122: 121
B123: 122
B124: 123
B125: 124
B126: 125
B127: 126
B128: 127
B129: 128
B130: 129
B131: 130
B132: 131
B133: 132
B134: 133
B135: 134
B136: 135
B137: 136
B138: 137
B139: 138
B140: 139
B141: 140
B142: 141
B143: 142
B144: 143
B145: 144
B146: 145
B147: 146
B148: 147
B149: 148
B150: 149
B151: 150
B152: 151
B153: 152
B154: 153
B155: 154
B156: 155
B157: 156
B158: 157
B159: 158
B160: 159
B161: 160
B162: 161
B163: 162
B164: 163
B165: 164
B166: 165
B167: 166
B168: 167
B169: 168
B170: 169
B171: 170
B172: 171
B173: 172
B174: 173
B175: 174
B176: 175
B177: 176
B178: 177
B179: 178
B180: 179
B181: 180
B182: 181
B183: 182
B184: 183
B185: 184
B186: 185
B187: 186
B188: 187
B189: 188
B190: 189
B191: 190
B192: 191
B193: 192
B194: 193
B195: 194
B196: 195
B197: 196
B198: 197
B199: 198
B200: 199
... 1 more rows

Sheet DATOS
B1: NOMBRE | C1: DIRECCION | D1: TELEFONO | E1: C.C. | F1: NIT. | G1: Nº C.C. ó NIT.
B2: INVERSIONES Y ASESORIAS ERPO & CIA S.C.S | C2: CRA 8 Nº 15-73 OF. 802 | D2: 4863737 | G2: 830.084.358-2
B3: DEALERCOM LTDA. | C3: CARRERA 16 Nº 61-23 | D3: 3474237 | F3: X | G3: 830.104.838-3
B4: PUNTO SALITRE. | C4: AV. ESPERANZA CON 68D | D4: 6006015
B5: AFA LTDA. | C5: CALLE 19 Nº 5 -25 PISO 7 | D5: 3365410 | F5: X | G5: 860.401.653-0
B6: COSINTE LTDA. | C6: CRA 14 Nº 95-61 | D6: 6103337 | F6: X | G6: 830.019.581-2
B7: DPI DIGITAL SAS | C7: CRA 28A 72 23 | F7: X | G7: 900,568,389

Sheet OTROS
D1: CUENTA DE COBRO
D2: Nº | F2: 017
A4: FECHA | B4: CLIENTE | F4: C.C. ó NIT.
A5: =NOW() -> 2024-11-21T13:30:22.690 | B5: =VLOOKUP(F2,CONSECUTIVO!$B$2:$F$200,2,FALSE) -> DEKONSTRUCTODO | F5: =VLOOKUP(B5,DATOS!$B$2:$G$100,6,FALSE) ->  | I5: SELECCIONE EL TIPO | K5: 2 | P5: MI PLANILLA
A6: DIRECCION | D6: TELEFONO | P6: VOUCHER
A7: =VLOOKUP(B5,DATOS!$B$2:$G$100,2,FALSE) ->  | D7: =VLOOKUP(B5,DATOS!$B$2:$G$100,3,FALSE) ->  | I7: 1 | J7: MI PLANILLA
A8: DEBE A: | I8: 2 | J8: VOUCHER'S
A9: IPCOL NETWORKS | I9: 3 | J9: F S
A11: =PesosCO(F22) -> LA SUMA DE: CIENTO CINCUENTA MIL PESOS M/CTE.
A12: POR CONCEPTO DE:
A13: =""&VLOOKUP(F2,CONSECUTIVO!$B$2:$F$200,3,FALSE) -> 160000
I14: 2 | J14: FECHA | K14: CANT. | L14: VOUCHER | M14: VALOR UNITARIO | N14: VALOR TOTAL
A15: =""&VLOOKUP(K5,#REF!,2,FALSE) ->  | B15: =""&VLOOKUP(K5,#REF!,3,FALSE) ->  | C15: DESCRIPCION | E15: =""&VLOOKUP(K5,#REF!,5,FALSE) ->  | F15: =""&VLOOKUP(K5,#REF!,6,FALSE) -> 
A16: FEBRERO 2014 | C16: PRESTAMO HECHO POR EDUARDO GROSSO | E16: $ 150,000 | F16: $ 150,000
B21: ACEPTADA POR: | D21: ______________________
C22: _______________________________ | E22: TOTAL | F22: =SUM(F16:F20) -> $ 150,000
C23: C.C.
A24: IPCOL NETWORKS. Carrera 16 Nº 61-23 Bogotá D.C. Colombia. Tel: 2112433
A25: pagina web: ipcol.ath.cx e-mail: ipcol.ath.cx@hotmail.com

Sheet TH FIBERGLASS
A5: Bogotá D.C. | B5: Miercoles, 31 de enero de 2024.
G8: CUENTA DE COBRO No. 002
A11: TH FIBERGLASS PARTS S.A.S.
A12: NIT: 901.586.069-0
A16: DEBE A:
A20: WILMER VALERO
A21: C.C. No. 80.056.937
A25: =PesosCO(A26) -> LA SUMA DE: CUATROCIENTOS TREINTA MIL QUINIENTOS OCHENTA Y NUEVE PESOS M/CTE.
A26: $ 430,589
A29: POR CONCEPTO DE:
A31: Servicio de limpieza, lubricación y alineación de eje Z en router CNC.
A40: WILMER VALERO.
A41: C.C. No. 80.056.937
A42: Tel: 3105719964
A44: Acorde al articulo 383 del ET, certifico bajo la gravedad de juramento que mis ingresos
A45: provienen de rentas laborales y no he subcontratado, para efectos de retencion en la fuente.

Sheet FSS INTER
A5: Bogotá D.C. | B5: Jueves, 25 de abril de 2024.
G8: CUENTA DE COBRO No. 013
A11: FSS INTER S.A.S.
A12: NIT: 900.569.315-2
A16: DEBE A:
A20: WILMER VALERO
A21: C.C. No. 80.056.937
A25: =PesosCO(A26) -> LA SUMA DE: CUATROCIENTOS TREINTA MIL QUINIENTOS OCHENTA Y NUEVE PESOS M/CTE.
A26: $ 430,589
A29: POR CONCEPTO DE:
A31: Mantenimiento de router CNC.
A40: WILMER VALERO.
A41: C.C. No. 80.056.937
A42: Tel: 3105719964
A44: Acorde al articulo 383 del ET, certifico bajo la gravedad de juramento que mis ingresos
A45: provienen de rentas laborales y no he subcontratado, para efectos de retencion en la fuente.

Sheet DPI DIGITAL
A5: Bogotá D.C. | B5: Viernes, 1 de noviembre de 2024.
G8: CUENTA DE COBRO No. 021
A11: DPI DIGITAL SAS.
A12: NIT: 900.568.389
A16: DEBE A:
A20: WILMER VALERO
A21: C.C. No. 80.056.937
A25: =PesosCO(A26) -> LA SUMA DE: CUATROCIENTOS TREINTA MIL QUINIENTOS OCHENTA Y NUEVE PESOS M/CTE.
A26: $ 430,589
A29: POR CONCEPTO DE:
A31: Programacion inversor de voltaje, marca FULING, ref. BD612.
A34: ORDEN DE GIRO:
A35: NEQUI 318 2853603 (Eduardo Grosso)
A40: WILMER VALERO.
A41: C.C. No. 80.056.937
A42: Tel: 3105719964
A44: Acorde al articulo 383 del ET, certifico bajo la gravedad de juramento que mis ingresos
A45: provienen de rentas laborales y no he subcontratado, para efectos de retencion en la fuente.

Sheet DEKONSTRUCTODO
A5: Bogotá D.C. | B5: Viernes, 15 de noviembre de 2024.
G8: CUENTA DE COBRO No. 022
A11: DEKONSTRUCTODO S.A.S.
A12: NIT: 901.067.886-5
A16: DEBE A:
A20: WILMER VALERO
A21: C.C. No. 80.056.937
A25: =PesosCO(A26) -> LA SUMA DE: CIENTO VEINTISEIS MIL PESOS M/CTE.
A26: $ 126,000
A29: POR CONCEPTO DE:
A31: Corte lamina de alucobond, según Orden de Trabajo No 01-2411141
A40: WILMER VALERO.
A41: C.C. No. 80.056.937
A42: Tel: 3105719964
A44: Acorde al articulo 383 del ET, certifico bajo la gravedad de juramento que mis ingresos
A45: provienen de rentas laborales y no he subcontratado, para efectos de retencion en la fuente.

Sheet DEKONSTRUCTODO PRECIOS
B3: FECHA | C3: VALOR | D3: AREA | F3: AREA TOTAL
B4: 2022-01-13 | C4: $ 60,000 | D4: 2.4 | E4: 0.5 | F4: =D4*E4 -> 1.2
B5: 2022-02-14 | C5: $ 90,000 | D5: 3.5 | E5: 0.85 | F5: =D5*E5 -> 2.975
B6: 2022-02-22 | C6: $ 100,000 | D6: 4.2 | E6: 1.05 | F6: 4.41
B7: 2022-02-24 | C7: $ 90,000 | D7: 3.4 | E7: 0.85 | F7: 2.89 | H7: area | I7: precio
B8: 2022-02-25 | C8: $ 60,000 | D8: 2.1 | E8: 0.65 | F8: 1.365 | H8: 1.50 | I8: $ 60,000
B9: 2022-03-24 | C9: $ 70,000 | D9: 2.5 | E9: 0.65 | F9: 1.625 | H9: 1.90 | I9: $ 70,000
B10: 2022-03-29 | C10: $ 100,000 | D10: 3.5 | E10: 0.95 | F10: 3.325 | H10: 2.30 | I10: $ 80,000
B11: 2022-03-30 | C11: $ 100,000 | D11: 3.5 | E11: 0.95 | F11: 3.325 | H11: 2.70 | I11: $ 90,000
B12: 2022-04-06 | C12: $ 100,000 | D12: 4 | E12: 1.05 | F12: 4.2 | H12: 3.10 | I12: $ 100,000
B13: 2022-04-07 | C13: $ 60,000 | D13: 2 | E13: 0.65 | F13: 1.3
B14: 2022-04-28 | C14: $ 60,000 | D14: 2.1 | E14: 0.55 | F14: 1.155
B15: 2022-06-06 | C15: $ 60,000 | D15: 2.3 | E15: 0.65 | F15: 1.495
B16: 2022-06-06 | C16: $ 60,000 | D16: 2.3 | E16: 0.85 | F16: 1.955
B17: 2022-06-16 | C17: $ 60,000 | D17: 2.5 | E17: 0.75 | F17: 1.875
B18: 2022-06-21 | C18: $ 65,000 | D18: 3 | E18: 0.8 | F18: 2.4
B19: 2022-06-21 | C19: $ 65,000 | D19: 3 | E19: 0.8 | F19: =D19*E19 -> 2.4
B20: 2022-07-26 | C20: $ 90,000 | D20: 3.4 | E20: 0.95 | F20: 3.23
B21: 2022-07-26 | C21: $ 60,000 | D21: 2.7 | E21: 0.95 | F21: 2.565
B22: 2022-08-17 | C22: $ 60,000 | D22: 2.5 | E22: 0.65 | F22: 1.625
B23: 2022-09-28 | C23: $ 100,000 | D23: 3.6 | E23: 0.85 | F23: 3.06
B24: 2022-09-28 | C24: $ 70,000 | D24: 2.6 | E24: 0.85 | F24: 2.21
B25: 2022-09-29 | C25: $ 100,000 | D25: 3.6 | E25: 0.85 | F25: 3.06
B26: 2022-09-29 | C26: $ 70,000 | D26: 2.6 | E26: 0.85 | F26: 2.21
B27: 2022-10-10 | C27: $ 60,000 | D27: 2.5 | E27: 0.65 | F27: =D27*E27 -> 1.625
B28: 2022-10-25 | D28: 2.5 | E28: 0.55 | F28: 1.375
D29: 5.3 | E29: 1.3 | F29: 6.89
B30: 2023-02-01 | D30: 3.6 | E30: 0.95 | F30: 3.42 | G30: CON TAPAS | H30: $ 140,000
D31: 4.05 | E31: 0.9 | F31: 3.645
D32: 3.5 | E32: 0.75 | F32: 2.625
D33: 4.5 | E33: 1.05 | F33: =D33*E33 -> 4.725 | G33: CON TAPAS | H33: $ 170,000
G37: $ 4,200 | H37: min que marque router

Sheet AGAZO DESING
A5: Bogotá D.C. | B5: Viernes, 17 de junio de 2022.
G8: CUENTA DE COBRO No. 018
A11: AGAZO DESING S.A.S.
A12: NIT: 900.177.361-9
A16: DEBE A:
A20: WILMER VALERO
A21: C.C. No. 80.056.937
A25: =PesosCO(A26) -> LA SUMA DE: CIENTO CINCUENTA MIL PESOS M/CTE.
A26: $ 150,000
A29: POR CONCEPTO DE:
A31: Corte de 3 laminas de MDF, según diseño.
A40: WILMER VALERO.
A41: C.C. No. 80.056.937
A42: Tel: 3105719964
A44: Acorde al articulo 383 del ET, certifico bajo la gravedad de juramento que mis ingresos
A45: provienen de rentas laborales y no he subcontratado, para efectos de retencion en la fuente.

Sheet Bucaramanga 1
A5: Bucaramanga, | B5: Miercoles, 14 de agosto de 2019.
G8: CUENTA DE COBRO No. 001
A11: LA BODEGA ELECTRICA S.A.S.
A12: NIT: 804.014.181-2
A16: DEBE A:
A20: WILMER VALERO
A21: C.C. No. 80.056.937
A25: =PesosCO(A26) -> LA SUMA DE: TRESCIENTOS MIL PESOS M/CTE.
A26: $ 300,000
A29: POR CONCEPTO DE:
A31: Induccion de manejo, y puesta en marcha de Router CNC 60x90,
A32: con sotfware NC-Studio
A40: WILMER VALERO.
A41: C.C. No. 80.056.937
A42: Tel: 3105719964
A44: Acorde al articulo 383 del ET, certifico bajo la gravedad de juramento que mis ingresos
A45: provienen de rentas laborales y no he subcontratado, para efectos de retencion en la fuente.

Sheet PRIMAX
A5: Bogotá D.C., | B5: Viernes, 13 de marzo de 2020.
G8: CUENTA DE COBRO No. 002
A11: PRIMAX COLOMBIA S.A.
A12: NIT: 860,002,554-8
A16: DEBE A:
A20: WILMER VALERO
A21: C.C. No. 80.056.937
A25: =PesosCO(A26) -> LA SUMA DE: DOSCIENTOS DIECINUEVE MIL SEISCIENTOS NOVENTA Y OCHO PESOS M/CTE.
A26: $ 219,698
A29: POR CONCEPTO DE:
A31: Verificación, y puesta en marcha de Router CNC 60x90,
A32: con sotfware NC-Studio
A40: WILMER VALERO.
A41: C.C. No. 80.056.937
A42: Tel: 3105719964
A44: Acorde al articulo 383 del ET, certifico bajo la gravedad de juramento que mis ingresos
A45: provienen de rentas laborales y no he subcontratado, para efectos de retencion en la fuente.

Sheet PANATECH
A5: Bogotá D.C. | B5: Viernes, 3 de mayo de 2024.
G9: CUENTA DE COBRO No. 015
A14: PANATECH INGENIERIA DISEÑO Y TECNOLOGIA S.A.S
A15: NIT: 901.155.925-1
A19: DEBE A:
A23: WILMER VALERO
A24: C.C. No. 80.056.937
A28: =PesosCO(A29) -> LA SUMA DE: NOVENTA Y UN MIL PESOS M/CTE.
A29: $ 91,000
A33: POR CONCEPTO DE:
A36: Corte de lamina melamina, según planos.
A45: WILMER VALERO.
A46: C.C. No. 80.056.937
A47: Tel: 3105719964

Sheet ACUSTEC
A5: Bogotá D.C. | B5: Viernes, 16 de junio de 2023.
G8: CUENTA DE COBRO No. 014
A11: ACUSTICA TECNICA ACUSTEC DE COLOMBIA S.A.S
A12: NIT: 830.068.504-4
A16: DEBE A:
A20: WILMER VALERO
A21: C.C. No. 80.056.937
A25: =PesosCO(A26) -> LA SUMA DE: CUATROCIENTOS TREINTA MIL QUINIENTOS OCHENTA Y NUEVE PESOS M/CTE.
A26: $ 430,589
A29: POR CONCEPTO DE:
A31: Servico de alineacion a escuadra y paralelismo de Router CNC.
A40: WILMER VALERO.
A41: C.C. No. 80.056.937
A42: Tel: 3105719964
A44: Acorde al articulo 383 del ET, certifico bajo la gravedad de juramento que mis ingresos
A45: provienen de rentas laborales y no he subcontratado, para efectos de retencion en la fuente.

Sheet MADELTEC
A5: Bogotá D.C. | B5: Miercoles, 15 de marzo de 2023.
G9: CUENTA DE COBRO No. 004
A14: MADELTEC S.A.S
A15: NIT: 900.759.865-7
A19: DEBE A:
A23: WILMER VALERO
A24: C.C. No. 80.056.937
A28: =PesosCO(A29) -> LA SUMA DE: TRESCIENTOS VEINTIDOS MIL CUATROCIENTOS SESENTA Y TRES PESOS M/CTE.
A29: $ 322,463
A33: POR CONCEPTO DE:
A36: Servicios de mantenimiento de 2 Router CNC.
A39: ORDEN DE GIRO:
A40: Bancolombia Cuenta de Ahorros 200 758 044 57 Eduardo Grosso C.C. 79.463.699
A45: WILMER VALERO.
A46: C.C. No. 80.056.937
A47: Tel: 3105719964 Dir: Calle 39 sur # 31A - 47
A48: wival@hotmail.com

Sheet furgon
A5: Bogotá D.C. | B5: Lunes, 5 de septiembre de 2022.
G8: CUENTA DE COBRO No. 026
A11: REDES Y OBRAS CIVILES ROCS S.A.S.
A12: NIT: 901.545.617
A16: DEBE A:
A20: WILMER VALERO
A21: C.C. No. 80.056.937
A25: =PesosCO(A26) -> LA SUMA DE: CUATROCIENTOS MIL PESOS M/CTE.
A26: $ 400,000
A29: POR CONCEPTO DE:
A31: PUERTAS PARA FURGON USADAS.
A40: WILMER VALERO.
A41: C.C. No. 80.056.937
A42: Tel: 3105719964
A44: Acorde al articulo 383 del ET, certifico bajo la gravedad de juramento que mis ingresos
A45: provienen de rentas laborales y no he subcontratado, para efectos de retencion en la fuente.

Sheet MACROLASER
A5: Bogotá D.C. | B5: Viernes, 5 de abril de 2024.
G8: CUENTA DE COBRO No. 012
A11: IMPORTADORA MACROLASER HR S.A.S
A12: NIT: 900.630.491-0
A16: DEBE A:
A20: WILMER VALERO
A21: C.C. No. 80.056.937
A25: =PesosCO(A26) -> LA SUMA DE: CIEN MIL PESOS M/CTE.
A26: $ 100,000
A29: POR CONCEPTO DE:
A31: Servicio de verificacion de parametros en Router CNC.
A40: WILMER VALERO.
A41: C.C. No. 80.056.937
A42: Tel: 3105719964
A44: Acorde al articulo 383 del ET, certifico bajo la gravedad de juramento que mis ingresos
A45: provienen de rentas laborales y no he subcontratado, para efectos de retencion en la fuente.
